fUSD/lending_fUSD_20250416
["ID","MTS","AMOUNT","RATE_DAILY","PERIOD"]
[358141517,1744765806494,-150.0,0.00049664,30]
[358141518,1744765806525,-1001.47,0.00049669,30]
[358141519,1744765806555,-1049.30355378,0.0004969,120]
[358141520,1744765806585,-150.0,0.00049695,30]
[358141521,1744765806624,-305.77080733,0.00049702,30]
[358141522,1744765806655,-214.54507832,0.00049702,30]
[358141523,1744765806689,-150.0,0.00049723,30]
[358141524,1744765806719,-305.77080733,0.00049757,30]
[358141525,1744765806750,-214.54507832,0.00049757,30]
[358141526,1744765806779,-476.32705615,0.0004977,120]
[358141527,1744765806809,-150.0,0.00049771,30]
[358141528,1744765806837,-150.0,0.00049771,30]
[358141529,1744765806866,-150.0,0.00049781,30]
[358141530,1744765806894,-1133.86908152,0.000498,30]
[358141531,1744765806928,-152.75,0.000498,48]
[358141532,1744765806961,-152.75,0.000498,48]
[358141533,1744765807000,-152.75,0.000498,48]
[358141534,1744765807040,-152.75,0.000498,48]
[358141535,1744765807087,-152.75,0.000498,48]
[358141536,1744765807134,-152.75,0.000498,48]
[358141537,1744765807186,-152.75,0.000498,48]
[358141538,1744765807221,-152.75,0.000498,48]
[358141539,1744765807262,-152.75,0.000498,48]
[358141540,1744765807298,-152.75,0.000498,48]
[358141541,1744765807346,-152.75,0.000498,48]
[358141542,1744765807379,-152.75,0.000498,48]
[358141543,1744765807432,-152.75,0.000498,48]
[358141544,1744765807466,-152.75,0.000498,48]
[358141545,1744765807493,-305.77080733,0.00049813,30]
[358141546,1744765807520,-214.54507832,0.00049813,30]
[358141547,1744765807550,-150.0,0.00049839,30]
[358141548,1744765807576,-150.0,0.00049847,30]
[358141549,1744765807611,-700.0,0.00049862,120]
[358141550,1744765807637,-702.96,0.00049863,120]
[358141551,1744765807667,-500.0,0.00049863,120]
[358141552,1744765807699,-500.0,0.00049863,120]
[358141553,1744765807727,-2000.0,0.00049863,120]
[358141554,1744765807759,-3000.0,0.00049863,120]
[358141555,1744765807799,-500.0,0.00049863,120]
[358141556,1744765807827,-500.0,0.00049863,120]
[358141557,1744765807855,-500.0,0.00049863,120]
[358141558,1744765807901,-500.0,0.00049863,120]
[358141559,1744765807929,-500.0,0.00049863,120]
[358141560,1744765807955,-205.92483051,0.00049863,120]
[358141561,1744765807983,-548.63323721,0.00049863,120]
[358141562,1744765808010,-500.0,0.00049863,120]
[358141563,1744765808039,-500.0,0.00049863,120]
[358141564,1744765808065,-500.0,0.00049863,120]
[358141565,1744765808090,-395.95368677,0.00049863,120]
[358141566,1744765808120,-500.0,0.00049863,120]
[358141567,1744765808149,-511.60478336,0.00049863,120]
[358141568,1744765808175,-500.0,0.00049863,120]
[358141569,1744765808200,-615.45,0.00049863,120]
[358141570,1744765808226,-500.0,0.00049863,120]
[358141571,1744765808256,-500.0,0.00049863,120]
[358141572,1744765808283,-500.0,0.00049863,120]
[358141573,1744765808310,-500.0,0.00049863,120]
[358141574,1744765808336,-500.0,0.00049863,120]
[358141575,1744765808367,-500.0,0.00049863,120]
[358141576,1744765808394,-500.0,0.00049863,120]
[358141577,1744765808421,-500.0,0.00049863,120]
[358141578,1744765808447,-508.91955234,0.00049863,120]
[358141579,1744765808473,-500.0,0.00049863,120]
[358141580,1744765808500,-500.0,0.00049863,120]
[358141581,1744765808525,-480.40807199,0.00049863,120]
[358141582,1744765808552,-482.99015553,0.00049863,120]
[358141583,1744765808578,-500.0,0.00049863,120]
[358141584,1744765808605,-500.0,0.00049863,120]
[358141585,1744765808634,-1281.64,0.00049863,30]
[358141586,1744765808659,-463.69224073,0.00049863,120]
[358141587,1744765808685,-500.0,0.00049863,120]
[358141588,1744765808712,-500.0,0.00049863,120]
[358141589,1744765808738,-500.0,0.00049863,120]
[358141590,1744765808764,-333.95841792,0.00049863,120]
[358141591,1744765808792,-2533.53,0.00049863,90]
[358141592,1744765808818,-613.82611943,0.00049863,120]
[358141593,1744765808845,-500.0,0.00049863,120]
[358141594,1744765808872,-563.05,0.00049863,120]
[358141595,1744765808898,-500.0,0.00049863,120]
[358141596,1744765808923,-500.0,0.00049863,120]
[358141597,1744765808949,-500.0,0.00049863,120]
[358141598,1744765808975,-500.0,0.00049863,120]
[358141599,1744765809004,-500.0,0.00049863,120]
[358141600,1744765809030,-627.32,0.00049863,120]
[358141601,1744765809057,-500.0,0.00049863,120]
[358141602,1744765809083,-500.0,0.00049863,120]
[358141603,1744765809110,-531.86,0.00049863,120]
[358141604,1744765809137,-500.0,0.00049863,120]
[358141605,1744765809162,-547.92921948,0.00049863,120]
[358141606,1744765809363,-500.0,0.00049863,120]
[358141607,1744765809390,-1119.93,0.00049863,120]
[358141608,1744765809415,-500.0,0.00049863,120]
[358141609,1744765809440,-500.0,0.00049863,120]
[358141610,1744765809465,-500.0,0.00049863,120]
[358141611,1744765809491,-2185.17,0.00049863,120]
[358141612,1744765809516,-500.0,0.00049863,120]
[358141613,1744765809542,-500.0,0.00049863,120]
[358141614,1744765809567,-1551.42,0.00049863,120]
[358141615,1744765809595,-852.17,0.00049863,120]
[358141616,1744765809620,-500.0,0.00049863,120]
[358141617,1744765809646,-1000.0,0.00049863,120]
[358141618,1744765809672,-500.0,0.00049863,120]
[358141619,1744765809699,-500.0,0.00049863,120]
[358141620,1744765809726,-818.1,0.00049863,120]
[358141621,1744765809752,-500.0,0.00049863,120]
[358141622,1744765809779,-500.0,0.00049863,120]
[358141623,1744765809807,-538.7,0.00049863,120]
[358141624,1744765809834,-500.0,0.00049863,120]
[358141625,1744765809863,-572.51,0.00049863,120]
[358141626,1744765809890,-500.0,0.00049863,120]
[358141627,1744765809917,-500.0,0.00049863,120]
[358141628,1744765809943,-500.0,0.00049863,120]
[358141629,1744765809969,-500.0,0.00049863,120]
[358141630,1744765809995,-500.0,0.00049863,120]
[358141631,1744765810024,-500.0,0.00049863,120]
[358141632,1744765810050,-500.0,0.00049863,120]
[358141633,1744765810076,-500.0,0.00049863,120]
[358141634,1744765810105,-500.0,0.00049863,120]
[358141635,1744765810133,-500.0,0.00049863,120]
[358141636,1744765810159,-500.0,0.00049863,120]
[358141637,1744765810186,-500.0,0.00049863,120]
[358141638,1744765810214,-500.0,0.00049863,120]
[358141639,1744765810241,-1000.0,0.00049863,120]
[358141640,1744765810266,-500.0,0.00049863,120]
[358141641,1744765810292,-500.0,0.00049863,120]
[358141642,1744765810319,-500.0,0.00049863,120]
[358141643,1744765810347,-500.0,0.00049863,120]
[358141644,1744765810372,-500.0,0.00049863,120]
[358141645,1744765810398,-500.0,0.00049863,120]
[358141646,1744765810424,-500.0,0.00049863,120]
[358141647,1744765810450,-2000.0,0.00049863,30]
[358141648,1744765810477,-635.21,0.00049863,120]
[358141649,1744765810502,-500.0,0.00049863,120]
[358141650,1744765810528,-500.0,0.00049863,120]
[358141651,1744765810553,-500.0,0.00049863,120]
[358141652,1744765810578,-500.0,0.00049863,120]
[358141653,1744765810605,-398.00383437,0.00049863,120]
[358141654,1744765810631,-500.0,0.00049863,120]
[358141655,1744765810656,-500.0,0.00049863,120]
[358141656,1744765810683,-500.0,0.00049863,120]
[358141657,1744765810711,-500.0,0.00049863,120]
[358141658,1744765810738,-500.0,0.00049863,120]
[358141659,1744765810771,-500.0,0.00049863,120]
[358141660,1744765810814,-500.0,0.00049863,120]
[358141661,1744765810845,-500.0,0.00049863,120]
[358141662,1744765810874,-2769.0,0.00049863,35]
[358141663,1744765810910,-500.0,0.00049863,120]
[358141664,1744765810937,-500.0,0.00049863,120]
[358141665,1744765810963,-1000.0,0.00049863,120]
[358141666,1744765810992,-500.0,0.00049863,120]
[358141667,1744765811019,-500.0,0.00049863,120]
[358141668,1744765811046,-1231.0,0.00049863,120]
[358141669,1744765811072,-500.0,0.00049863,120]
[358141670,1744765811099,-500.0,0.00049863,120]
[358141671,1744765811126,-500.0,0.00049863,120]
[358141672,1744765811166,-517.84,0.00049863,120]
[358141673,1744765811209,-500.0,0.00049863,120]
[358141674,1744765811240,-500.0,0.00049863,120]
[358141675,1744765811266,-500.0,0.00049863,120]
[358141676,1744765811302,-500.0,0.00049863,120]
[358141677,1744765811327,-500.0,0.00049863,120]
[358141678,1744765811355,-500.0,0.00049863,120]
[358141679,1744765811381,-578.57551223,0.00049863,120]
[358141680,1744765811406,-500.0,0.00049863,120]
[358141681,1744765811431,-1986.36,0.00049863,120]
[358141682,1744765811456,-500.0,0.00049863,120]
[358141683,1744765811481,-293.25194282,0.00049863,120]
[358141684,1744765811506,-500.0,0.00049863,120]
[358141685,1744765811531,-500.0,0.00049863,120]
[358141686,1744765811556,-907.66,0.00049863,120]
[358141687,1744765811582,-500.0,0.00049863,120]
[358141688,1744765811608,-500.0,0.00049863,120]
[358141689,1744765811633,-500.0,0.00049863,30]
[358141690,1744765811660,-500.0,0.00049863,120]
[358141691,1744765811687,-896.66,0.00049863,120]
[358141692,1744765811721,-500.0,0.00049863,120]
[358141693,1744765811756,-500.0,0.00049863,120]
[358141694,1744765811787,-500.0,0.00049863,120]
[358141695,1744765811829,-922.97,0.00049863,120]
[358141696,1744765811856,-500.0,0.00049863,120]
[358141697,1744765811881,-500.0,0.00049863,120]
[358141698,1744765811907,-1285.45,0.00049863,120]
[358141699,1744765811933,-660.47,0.00049863,120]
[358141700,1744765812130,-500.0,0.00049863,120]
[358141701,1744765812174,-500.0,0.00049863,120]
[358141702,1744765812204,-1816.87,0.00049863,118]
[358141703,1744765812229,-500.0,0.00049863,120]
[358141704,1744765812257,-500.0,0.00049863,120]
[358141705,1744765812284,-665.4,0.00049863,120]
[358141706,1744765812309,-593.36224031,0.00049863,120]
[358141707,1744765812359,-500.0,0.00049863,120]
[358141708,1744765812385,-2921.02,0.00049863,120]
[358141709,1744765812410,-579.13653394,0.00049863,120]
[358141710,1744765812436,-500.0,0.00049863,120]
[358141711,1744765812462,-500.0,0.00049863,120]
[358141712,1744765812488,-500.0,0.00049863,120]
[358141713,1744765812513,-500.0,0.00049863,120]
[358141714,1744765812538,-500.0,0.00049863,30]
[358141715,1744765812564,-500.0,0.00049863,120]
[358141716,1744765812589,-529.35,0.00049863,120]
[358141717,1744765812621,-500.0,0.00049863,120]
[358141718,1744765812648,-500.0,0.00049863,120]
[358141719,1744765812677,-500.0,0.00049863,120]
[358141720,1744765812708,-500.0,0.00049863,120]
[358141721,1744765812736,-500.0,0.00049863,120]
[358141722,1744765812764,-500.0,0.00049863,120]
[358141723,1744765812792,-229.93,0.00049863,120]
[358141724,1744765812819,-500.0,0.00049863,120]
[358141725,1744765812848,-500.0,0.00049863,120]
[358141726,1744765812875,-500.0,0.00049863,120]
[358141727,1744765812901,-500.0,0.00049863,120]
[358141728,1744765812928,-500.0,0.00049863,120]
[358141729,1744765812956,-591.47,0.00049863,120]
[358141730,1744765812982,-944.37,0.00049863,120]
[358141731,1744765813010,-500.0,0.00049863,120]
[358141732,1744765813037,-500.0,0.00049863,120]
[358141733,1744765813063,-500.0,0.00049863,120]
[358141734,1744765813089,-500.0,0.00049863,120]
[358141735,1744765813118,-500.0,0.00049863,120]
[358141736,1744765813144,-500.0,0.00049863,120]
[358141737,1744765813169,-1386.92,0.00049863,120]
[358141738,1744765813196,-500.0,0.00049863,120]
[358141739,1744765813222,-500.0,0.00049863,120]
[358141740,1744765813249,-1181.75,0.00049863,120]
[358141741,1744765813275,-500.0,0.00049863,120]
[358141742,1744765813301,-1034.03,0.00049863,120]
[358141743,1744765813325,-500.0,0.00049863,120]
[358141744,1744765813349,-505.87,0.00049863,120]
[358141745,1744765813375,-669.94,0.00049863,120]
[358141746,1744765813401,-500.0,0.00049863,120]
[358141747,1744765813426,-500.0,0.00049863,120]
[358141748,1744765813451,-500.0,0.00049863,120]
[358141749,1744765813476,-510.61,0.00049863,120]
[358141750,1744765813502,-500.0,0.00049863,120]
[358141751,1744765813527,-1912.27,0.00049863,120]
[358141752,1744765813552,-500.0,0.00049863,120]
[358141753,1744765813577,-899.37,0.00049863,120]
[358141754,1744765813603,-500.0,0.00049863,120]
[358141755,1744765813627,-500.0,0.00049863,120]
[358141756,1744765813653,-517.99767153,0.00049863,120]
[358141757,1744765813678,-500.0,0.00049863,120]
[358141758,1744765813705,-500.0,0.00049863,120]
[358141759,1744765813731,-1831.65,0.00049863,120]
[358141760,1744765813756,-500.0,0.00049863,120]
[358141761,1744765813783,-500.0,0.00049863,120]
[358141762,1744765813811,-500.0,0.00049863,120]
[358141763,1744765813837,-1505.73,0.00049863,120]
[358141764,1744765813864,-301.53818832,0.00049863,120]
[358141765,1744765813891,-456.87304616,0.00049863,120]
[358141766,1744765813917,-500.0,0.00049863,120]
[358141767,1744765813943,-1000.0,0.00049863,120]
[358141768,1744765813970,-535.1,0.00049863,120]
[358141769,1744765813995,-515.09705237,0.00049863,120]
[358141770,1744765814024,-767.28,0.00049863,120]
[358141771,1744765814050,-500.0,0.00049863,120]
[358141772,1744765814076,-687.0,0.00049863,120]
[358141773,1744765814103,-1013.49,0.00049863,120]
[358141774,1744765814129,-500.0,0.00049863,120]
[358141775,1744765814155,-609.02,0.00049863,120]
[358141776,1744765814183,-511.04,0.00049863,120]
[358141777,1744765814207,-500.0,0.00049863,120]
[358141778,1744765814232,-1174.39,0.00049863,120]
[358141779,1744765814257,-305.77080733,0.00049868,30]
[358141780,1744765814282,-214.54507832,0.00049868,30]
[358141781,1744765814307,-150.0,0.00049898,30]
[358141782,1744765814332,-305.77080733,0.00049923,30]
[358141783,1744765814358,-214.54507832,0.00049923,30]
[358141784,1744765814382,-150.0,0.00049923,30]
[358141785,1744765814406,-150.0,0.00049923,30]
[358141786,1744765814430,-906.36197109,0.0004995,60]
[358141787,1744765814454,-150.0,0.00049956,30]
[358141788,1744765814479,-305.77080733,0.00049979,30]
[358141789,1744765814505,-214.54507832,0.00049979,30]
[358141790,1744765814530,-1899.99612697,0.00049998,120]
[358141791,1744765814555,-150.0,0.0005,30]
[358141792,1744765814581,-206.6,0.0005,49]
[358141793,1744765814611,-1000000.0,0.0005,120]
[358141794,1744765814638,-1000000.0,0.0005,120]
[358141795,1744765814820,-1000000.0,0.0005,120]
[358141796,1744765814849,-1000000.0,0.0005,120]
[358141797,1744765814877,-808770.55872944,0.0005,120]
[358141798,1744765832125,-222.27365,0.0001757,2]
[358141799,1744765832134,-250.0,0.00017677,2]
[358141800,1744765832143,-168.04109296,0.00017784,2]
[358141801,1744765832153,-1000.0,0.000178,2]
[358141802,1744765832162,-500.0,0.00017836,2]
[358141803,1744765832171,-699.605297,0.00017884,2]
[358141804,1744765832181,-103.84754802,0.00017899,2]
[358141805,1744765832192,-196.15245198,0.00017899,2]
[358141806,1744765832201,-262.0,0.00017899,2]
[358141807,1744765832211,-300.0,0.00017899,2]
[358141808,1744765832220,-1000.0,0.000179,2]
[358141809,1744765832229,-214.1626,0.000179,2]
[358141810,1744765832239,-2077.68494802,0.000179,2]
[358141811,1744765832250,-3031.43264769,0.000179,2]
[358141812,1744765832262,-6907.93580429,0.000179,2]
[358141813,1744765832271,-12500.0,0.000179,2]
[358141814,1744765832280,-1433.15751748,0.000179,2]
[358141815,1744765832291,-239.53058252,0.000179,2]
[358141816,1744765832300,-191.69625824,0.000179,2]
[358141817,1744765832309,-68.77315924,0.000179,2]
[358141818,1744765832321,-290.23984148,0.000179,2]
[358141819,1744765832332,-566.89951107,0.000179,2]
[358141820,1744765832343,-6512.03426517,0.000179,2]
[358141821,1744765832352,-3669.52363636,0.000179,2]
[358141822,1744765832364,-1330.47636364,0.000179,2]
[358141823,1744765832373,-345.16269822,0.000179,2]
[358141824,1744765832381,-2022.52861178,0.000179,2]
[358141825,1744765832390,-207.67855773,0.000179,2]
[358141826,1744765832399,-1000.0,0.000179,2]
[358141827,1744765832408,-152.6700965,0.0001791,2]
[358141828,1744765832417,-166.31,0.00017922,2]
[358141829,1744765832426,-502.81834,0.00017973,2]
[358141830,1744765832435,-501.79370607,0.00017973,2]
[358141831,1744765832446,-699.605297,0.00017986,2]
[358141832,1744765832455,-461.44406783,0.00017986,2]
[358141833,1744765832466,-366.84501,0.00017986,2]
[358141834,1744765832479,-538.90692217,0.00017986,2]
[358141835,1744765832488,-194.764,0.00017986,2]
[358141836,1744765832498,-467.9887409,0.00017987,2]
[358141837,1744765832507,-4589.3739638,0.00017987,2]
[358141838,1744765832516,-1561.9791016,0.00017987,2]
[358141839,1744765832528,-23.997127,0.00017987,2]
[358141840,1744765832537,-5470.55365813,0.00017987,2]
[358141842,1744765832548,-565.57028133,0.00017987,2]
[358141845,1744765832559,-946.24,0.00017987,2]
[358141847,1744765832570,-10184.07267464,0.00017987,2]
[358141849,1744765832579,-1825.4665013,0.00017987,2]
[358141851,1744765832588,-151.0,0.00017989,2]
[358141853,1744765832597,-228.01110712,0.00017989,2]
[358141855,1744765832606,-668.65185757,0.00017989,2]
[358141856,1744765832616,-207.4,0.00017989,2]
[358141858,1744765832625,-2000.0,0.0001799,2]
[358141860,1744765832634,-500.0,0.00017999,2]
[358141862,1744765832643,-300.0,0.00017999,2]
[358141864,1744765832652,-156.92970948,0.00018,2]
[358141865,1744765832661,-253.66846475,0.00018,2]
[358141866,1744765832671,-6134.44223653,0.00018,2]
[358141867,1744765832682,-895.97952156,0.00018,2]
[358141868,1744765832693,-2583.59415557,0.00018,2]
[358141869,1744765832709,-76654.26587,0.00018,2]
[358141870,1744765832721,-12538.09456825,0.00018,2]
[358141871,1744765832732,-17324.45023827,0.00018,2]
[358141878,1744765838160,-364.04259866,0.00018,2]
[358141879,1744765838271,-1296.4560435,0.00018,2]
[358141880,1744765838283,-5875.34240465,0.00018,2]
[358141881,1744765838295,-10793.82959557,0.00018,2]
[358141882,1744765838305,-1031.0,0.00018,2]
[358141883,1744765838315,-8968.22818443,0.00018,2]
[358141884,1744765838332,-5747.74016914,0.00018,2]
[358141885,1744765838343,-2281.87364935,0.00018,2]
[358141886,1744765838391,-518273.28637844,0.00018,2]
[358141887,1744765838402,-397.1800039,0.00018,2]
[358141888,1744765838414,-1037.35002977,0.00018,2]
[358141889,1744765838425,-624.1476786,0.00018,2]
[358141890,1744765838436,-4175.80824354,0.00018,2]
[358141891,1744765838447,-459.61762194,0.00018,2]
[358141892,1744765838460,-6156.45188761,0.00018,2]
[358141893,1744765838471,-9186.50881033,0.00018,2]
[358141894,1744765838495,-20025.22853405,0.00018,2]
[358141895,1744765838507,-218259.32205775,0.00018,2]
[358141896,1744765838518,-4108.3547939,0.00018,2]
[358141897,1744765838529,-775.44461026,0.00018,2]
[358141965,1744765840363,-522.91188455,0.00018,2]
[358141966,1744765840419,-22554.37513542,0.00018,2]
[358141967,1744765840431,-52589.27988838,0.00018,2]
[358141968,1744765840476,-3164.36616967,0.00018,2]
[358141969,1744765840488,-1514.18822812,0.00018,2]
[358141970,1744765840590,-483.1274037,0.00018,2]
[358141971,1744765840647,-2256.17336082,0.00018,2]
[358141972,1744765840705,-12563.83796045,0.00018,2]
[358141973,1744765840718,-814.66957525,0.00018,2]
[358141981,1744765843167,-8313.35309977,0.00018,2]
[358141982,1744765843280,-1121.80574648,0.00018,2]
[358141999,1744765846180,-928.0,0.00018,2]
[358142000,1744765846191,-4930.98161473,0.00018,2]
[358142001,1744765846387,-35301.41557748,0.00018,2]
[358142002,1744765846398,-1000.0,0.00018,2]
[358142003,1744765846419,-1249.74939967,0.00018,2]
[358142004,1744765846431,-618.56410682,0.00018,2]
[358142007,1744765855538,-589.29,0.00041095,120]
[358142008,1744765855568,-150.0,0.00041345,120]
[358142009,1744765855596,-589.29,0.00042465,120]
[358142010,1744765855648,-589.29,0.00043835,120]
[358142011,1744765855676,-245.59265169,0.0004384,120]
[358142012,1744765855704,-245.59265169,0.0004384,120]
[358142013,1744765855734,-245.59,0.0004384,120]
[358142014,1744765855762,-573.04952062,0.0004384,120]
[358142015,1744765855790,-573.04952062,0.0004384,120]
[358142016,1744765855817,-573.04952062,0.0004384,120]
[358142017,1744765855844,-573.04952062,0.0004384,120]
[358142018,1744765855871,-573.04952062,0.0004384,120]
[358142019,1744765855899,-573.04952062,0.0004384,120]
[358142020,1744765855927,-573.04952062,0.0004384,120]
[358142021,1744765855956,-573.04952062,0.0004384,120]
[358142022,1744765855983,-573.04952062,0.0004384,120]
[358142023,1744765856009,-573.04952062,0.0004384,120]
[358142024,1744765856056,-573.04952062,0.0004384,120]
[358142025,1744765856086,-573.04952062,0.0004384,120]
[358142026,1744765856119,-573.04952062,0.0004384,120]
[358142027,1744765856148,-573.04952062,0.0004384,120]
[358142028,1744765856175,-573.04952062,0.0004384,120]
[358142029,1744765856203,-573.04952062,0.0004384,120]
[358142030,1744765856230,-573.04952062,0.0004384,120]
[358142031,1744765856256,-573.04952062,0.0004384,120]
[358142032,1744765856283,-573.04952062,0.0004384,120]
[358142033,1744765856310,-573.04,0.0004384,120]
[358142034,1744765856340,-589.29,0.00045205,120]
[358142035,1744765856368,-589.29,0.00046575,120]
[358142036,1744765856396,-2142.0,0.000474,40]
[358142037,1744765856424,-589.29,0.00047945,120]
[358142038,1744765856455,-598.2174127,0.00049315,120]
[358142039,1744765856482,-500.0,0.00049315,120]
[358142040,1744765856508,-511.88626339,0.00049315,120]
[358142041,1744765856535,-1000.0,0.00049315,120]
[358142042,1744765856562,-1047.39,0.00049315,120]
[358142043,1744765856588,-589.29,0.00049315,120]
[358142044,1744765856614,-500.0,0.00049315,120]
[358142045,1744765856647,-500.0,0.00049315,120]
[358142046,1744765856676,-500.0,0.00049315,120]
[358142047,1744765856704,-500.0,0.00049315,120]
[358142048,1744765856735,-500.0,0.00049315,120]
[358142049,1744765856763,-500.0,0.00049315,120]
[358142050,1744765856791,-500.0,0.000494,120]
[358142051,1744765856820,-500.0,0.00049589,120]
[358142052,1744765856848,-1000.0,0.00049589,120]
[358142053,1744765856876,-1047.39,0.00049589,120]
[358142054,1744765856906,-500.0,0.00049589,120]
[358142055,1744765856933,-531.78818305,0.00049589,120]
[358142056,1744765856961,-256.42862989,0.00049589,120]
[358142057,1744765856988,-500.0,0.00049589,120]
[358142058,1744765857017,-500.0,0.00049589,120]
[358142059,1744765857043,-1000.0,0.00049863,120]
[358142060,1744765857073,-1047.39,0.00049863,120]
[358142061,1744765857100,-500.0,0.00049863,120]
[358142062,1744765857126,-615.40605284,0.00049863,120]
[358142063,1744765857153,-280.30153189,0.00049999,120]
[358142064,1744765857182,-191229.44127056,0.0005,120]
[358142065,1744765857210,-1000000.0,0.0005,120]
[358142066,1744765857239,-1000000.0,0.0005,120]
[358142067,1744765857272,-1000000.0,0.0005,120]
[358142068,1744765857504,-1000000.0,0.0005,120]
[358142069,1744765857533,-1000000.0,0.0005,120]
[358142070,1744765857560,-840.71499816,0.0005,120]
[358142071,1744765857587,-532.58626971,0.0005,120]
[358142072,1744765857612,-1000.0,0.0005,120]
[358142073,1744765857638,-2240.0,0.0005,120]
[358142074,1744765857665,-2993.1549986,0.0005,120]
[358142075,1744765857692,-621.91334906,0.0005,30]
[358142076,1744765857719,-229.52183281,0.0005,120]
[358142077,1744765857746,-1593.9417332,0.0005,120]
[358142078,1744765857778,-841.82954811,0.0005,120]
[358142079,1744765857805,-1262.47829958,0.0005,120]
[358142080,1744765857832,-778.21007928,0.0005,120]
[358142081,1744765857860,-156.16887309,0.0005,30]
[358142082,1744765857886,-3306.1206172,0.0005,120]
[358142083,1744765857913,-1620.22714139,0.0005,30]
[358142084,1744765857940,-213.44888335,0.0005,120]
[358142085,1744765857966,-1108.63221056,0.0005,30]
[358142086,1744765857993,-725.0910635,0.0005,120]
[358142087,1744765858026,-500.0,0.0005,30]
[358142088,1744765858052,-1000.9950087,0.0005,120]
[358142089,1744765858079,-228.89509812,0.0005,120]
[358142090,1744765858107,-565.81329727,0.0005,120]
[358142091,1744765858134,-525.47749605,0.0005,120]
[358142092,1744765858160,-157.50642444,0.0005,30]
[358142093,1744765858187,-751676.84723834,0.0005,120]
[358142094,1744765862498,-300.0,0.00032877,30]
[358142095,1744765862529,-300.0,0.00036986,30]
[358142096,1744765862562,-300.0,0.00041096,30]
[358142097,1744765862616,-300.0,0.00045205,30]
[358142098,1744765862647,-500.0,0.00049315,120]
[358142099,1744765862674,-826.32,0.00049315,120]
[358142100,1744765862701,-500.0,0.00049315,120]
[358142101,1744765862730,-300.0,0.00049315,30]
[358142102,1744765862756,-150.0,0.000494,30]
[358142103,1744765862782,-528.65823168,0.00049589,120]
[358142104,1744765862808,-826.32,0.00049589,120]
[358142105,1744765862834,-500.0,0.00049863,120]
[358142106,1744765862860,-826.32,0.00049863,120]
[358142107,1744765863048,-22942.68745248,0.0005,120]
[358142108,1744765863077,-2006.08,0.0005,120]
[358142109,1744765863107,-2000.0,0.0005,120]
[358142110,1744765863135,-150.0,0.0005,49]
[358142111,1744765863162,-500.0,0.0005,120]
[358142112,1744765863189,-244.13646622,0.0005,105]
[358142113,1744765863216,-2000.0,0.0005,120]
[358142114,1744765863244,-4463.0,0.0005,120]
[358142115,1744765863271,-500.0,0.00050001,120]
[358142116,1744765863300,-300.0,0.00050007,120]
[358142117,1744765863328,-150.0,0.00050014,30]
[358142118,1744765863355,-305.77080733,0.00050034,30]
[358142119,1744765863382,-214.54507832,0.00050034,30]
[358142120,1744765863408,-150.0,0.00050072,30]
[358142121,1744765863434,-150.0,0.00050076,30]
[358142122,1744765863459,-150.0,0.00050076,30]
[358142123,1744765863485,-305.77080733,0.00050089,30]
[358142124,1744765863511,-214.54507832,0.00050089,30]
[358142125,1744765863537,-150.0,0.00050131,30]
[358142126,1744765863564,-702.96,0.00050136,120]